Workbook

Sheet coeff
A2: Bank h2h | B2: 10000
A3: Bank line | B3: 10000
A4: Bank totals | B4: 10000
D5: Calc Version 1.57
A6: Kelly h2h | B6: 10
A7: Kelly line | B7: 10
A8: Kelly totals | B8: 10
A10: min Overlay h2h | B10: 0.05
A11: min Overlay line | B11: 0.05
A12: min Overlay totals | B12: 0.05

Sheet NblBets
A6: Date | B6: Team1 | C6: Team2 | D6: Prob(Team1) | E6: Odds(Team1) | F6: Odds(Team2) | G6: $Bet(Team1) | H6: $Bet(Team2) | I6: Exp.Total | J6: TotalLine | K6: OddsOver | L6: OddsUnder | M6: ProbOver | N6: $Bet(Over) | O6: $Bet(Under)
A7: 2014-11-09 | B7: Sydney | C7: Adelaide | D7: 0.481 | E7: 1.92 | F7: 1.99 | G7: =IF(OR(D7="",E7=""),"",IF((D7*E7-1)>=coeff!$B$10,coeff!$B$2*(D7*E7-1)/coeff!$B$6/(E7-1),0)) -> 0 | H7: =IF(OR(D7="",F7=""),"",IF(((1-D7)*F7-1)>=coeff!$B$10,coeff!$B$2*((1-D7)*F7-1)/coeff!$B$6/(F7-1),0)) -> 0 | I7: 174.3 | J7: 172 | K7: 1.94 | L7: 1.95 | M7: =IF(OR(I7="",J7=""),"",NORMDIST((I7-J7),0,19.25,TRUE)) -> 0.5475526637 | N7: =IF(OR(K7="",M7=""),"",IF((K7*M7-1)>=coeff!$B$12,coeff!$B$4*(K7*M7-1)/coeff!$B$8/(K7-1),0)) -> 66.22571011 | O7: =IF(OR(L7="",M7=""),"",IF((L7*(1-M7)-1)>=coeff!$B$12,coeff!$B$4*(L7*(1-M7)-1)/coeff!$B$8/(L7-1),0)) -> 0
A8: 2014-11-09 | B8: Townsville | C8: New Zealand | D8: 0.715 | E8: 1.81 | F8: 2.11 | G8: =IF(OR(D8="",E8=""),"",IF((D8*E8-1)>=coeff!$B$10,coeff!$B$2*(D8*E8-1)/coeff!$B$6/(E8-1),0)) -> 363.1481481 | H8: =IF(OR(D8="",F8=""),"",IF(((1-D8)*F8-1)>=coeff!$B$10,coeff!$B$2*((1-D8)*F8-1)/coeff!$B$6/(F8-1),0)) -> 0 | I8: 171.7 | J8: 167.5 | K8: 1.95 | L8: 1.94 | M8: =IF(OR(I8="",J8=""),"",NORMDIST((I8-J8),0,19.25,TRUE)) -> 0.5863562746 | N8: =IF(OR(K8="",M8=""),"",IF((K8*M8-1)>=coeff!$B$12,coeff!$B$4*(K8*M8-1)/coeff!$B$8/(K8-1),0)) -> 150.9418268 | O8: =IF(OR(L8="",M8=""),"",IF((L8*(1-M8)-1)>=coeff!$B$12,coeff!$B$4*(L8*(1-M8)-1)/coeff!$B$8/(L8-1),0)) -> 0
A9: 2014-11-09 | B9: Perth | C9: Melbourne | D9: 0.81 | E9: 1.21 | F9: 5.12 | G9: =IF(OR(D9="",E9=""),"",IF((D9*E9-1)>=coeff!$B$10,coeff!$B$2*(D9*E9-1)/coeff!$B$6/(E9-1),0)) -> 0 | H9: =IF(OR(D9="",F9=""),"",IF(((1-D9)*F9-1)>=coeff!$B$10,coeff!$B$2*((1-D9)*F9-1)/coeff!$B$6/(F9-1),0)) -> 0 | I9: 158.2 | J9: 159.5 | K9: 1.94 | L9: 1.96 | M9: 0.4730789078 | N9: =IF(OR(K9="",M9=""),"",IF((K9*M9-1)>=coeff!$B$12,coeff!$B$4*(K9*M9-1)/coeff!$B$8/(K9-1),0)) -> 0 | O9: =IF(OR(L9="",M9=""),"",IF((L9*(1-M9)-1)>=coeff!$B$12,coeff!$B$4*(L9*(1-M9)-1)/coeff!$B$8/(L9-1),0)) -> 0
G10: =IF(OR(D10="",E10=""),"",IF((D10*E10-1)>=coeff!$B$10,coeff!$B$2*(D10*E10-1)/coeff!$B$6/(E10-1),0)) ->  | H10: =IF(OR(D10="",F10=""),"",IF(((1-D10)*F10-1)>=coeff!$B$10,coeff!$B$2*((1-D10)*F10-1)/coeff!$B$6/(F10-1),0)) ->  | N10: =IF(OR(K10="",M10=""),"",IF((K10*M10-1)>=coeff!$B$12,coeff!$B$4*(K10*M10-1)/coeff!$B$8/(K10-1),0)) ->  | O10: =IF(OR(L10="",M10=""),"",IF((L10*(1-M10)-1)>=coeff!$B$12,coeff!$B$4*(L10*(1-M10)-1)/coeff!$B$8/(L10-1),0)) -> 
G11: =IF(OR(D11="",E11=""),"",IF((D11*E11-1)>=coeff!$B$10,coeff!$B$2*(D11*E11-1)/coeff!$B$6/(E11-1),0)) ->  | H11: =IF(OR(D11="",F11=""),"",IF(((1-D11)*F11-1)>=coeff!$B$10,coeff!$B$2*((1-D11)*F11-1)/coeff!$B$6/(F11-1),0)) ->  | N11: =IF(OR(K11="",M11=""),"",IF((K11*M11-1)>=coeff!$B$12,coeff!$B$4*(K11*M11-1)/coeff!$B$8/(K11-1),0)) ->  | O11: =IF(OR(L11="",M11=""),"",IF((L11*(1-M11)-1)>=coeff!$B$12,coeff!$B$4*(L11*(1-M11)-1)/coeff!$B$8/(L11-1),0)) -> 
G12: =IF(OR(D12="",E12=""),"",IF((D12*E12-1)>=coeff!$B$10,coeff!$B$2*(D12*E12-1)/coeff!$B$6/(E12-1),0)) ->  | H12: =IF(OR(D12="",F12=""),"",IF(((1-D12)*F12-1)>=coeff!$B$10,coeff!$B$2*((1-D12)*F12-1)/coeff!$B$6/(F12-1),0)) ->  | N12: =IF(OR(K12="",M12=""),"",IF((K12*M12-1)>=coeff!$B$12,coeff!$B$4*(K12*M12-1)/coeff!$B$8/(K12-1),0)) ->  | O12: =IF(OR(L12="",M12=""),"",IF((L12*(1-M12)-1)>=coeff!$B$12,coeff!$B$4*(L12*(1-M12)-1)/coeff!$B$8/(L12-1),0)) -> 
G13: =IF(OR(D13="",E13=""),"",IF((D13*E13-1)>=coeff!$B$10,coeff!$B$2*(D13*E13-1)/coeff!$B$6/(E13-1),0)) ->  | H13: =IF(OR(D13="",F13=""),"",IF(((1-D13)*F13-1)>=coeff!$B$10,coeff!$B$2*((1-D13)*F13-1)/coeff!$B$6/(F13-1),0)) ->  | N13: =IF(OR(K13="",M13=""),"",IF((K13*M13-1)>=coeff!$B$12,coeff!$B$4*(K13*M13-1)/coeff!$B$8/(K13-1),0)) ->  | O13: =IF(OR(L13="",M13=""),"",IF((L13*(1-M13)-1)>=coeff!$B$12,coeff!$B$4*(L13*(1-M13)-1)/coeff!$B$8/(L13-1),0)) -> 
G14: =IF(OR(D14="",E14=""),"",IF((D14*E14-1)>=coeff!$B$10,coeff!$B$2*(D14*E14-1)/coeff!$B$6/(E14-1),0)) ->  | H14: =IF(OR(D14="",F14=""),"",IF(((1-D14)*F14-1)>=coeff!$B$10,coeff!$B$2*((1-D14)*F14-1)/coeff!$B$6/(F14-1),0)) ->  | N14: =IF(OR(K14="",M14=""),"",IF((K14*M14-1)>=coeff!$B$12,coeff!$B$4*(K14*M14-1)/coeff!$B$8/(K14-1),0)) ->  | O14: =IF(OR(L14="",M14=""),"",IF((L14*(1-M14)-1)>=coeff!$B$12,coeff!$B$4*(L14*(1-M14)-1)/coeff!$B$8/(L14-1),0)) -> 
G15: =IF(OR(D15="",E15=""),"",IF((D15*E15-1)>=coeff!$B$10,coeff!$B$2*(D15*E15-1)/coeff!$B$6/(E15-1),0)) ->  | H15: =IF(OR(D15="",F15=""),"",IF(((1-D15)*F15-1)>=coeff!$B$10,coeff!$B$2*((1-D15)*F15-1)/coeff!$B$6/(F15-1),0)) ->  | N15: =IF(OR(K15="",M15=""),"",IF((K15*M15-1)>=coeff!$B$12,coeff!$B$4*(K15*M15-1)/coeff!$B$8/(K15-1),0)) ->  | O15: =IF(OR(L15="",M15=""),"",IF((L15*(1-M15)-1)>=coeff!$B$12,coeff!$B$4*(L15*(1-M15)-1)/coeff!$B$8/(L15-1),0)) -> 
G16: =IF(OR(D16="",E16=""),"",IF((D16*E16-1)>=coeff!$B$10,coeff!$B$2*(D16*E16-1)/coeff!$B$6/(E16-1),0)) ->  | H16: =IF(OR(D16="",F16=""),"",IF(((1-D16)*F16-1)>=coeff!$B$10,coeff!$B$2*((1-D16)*F16-1)/coeff!$B$6/(F16-1),0)) ->  | N16: =IF(OR(K16="",M16=""),"",IF((K16*M16-1)>=coeff!$B$12,coeff!$B$4*(K16*M16-1)/coeff!$B$8/(K16-1),0)) ->  | O16: =IF(OR(L16="",M16=""),"",IF((L16*(1-M16)-1)>=coeff!$B$12,coeff!$B$4*(L16*(1-M16)-1)/coeff!$B$8/(L16-1),0)) -> 
G17: =IF(OR(D17="",E17=""),"",IF((D17*E17-1)>=coeff!$B$10,coeff!$B$2*(D17*E17-1)/coeff!$B$6/(E17-1),0)) ->  | H17: =IF(OR(D17="",F17=""),"",IF(((1-D17)*F17-1)>=coeff!$B$10,coeff!$B$2*((1-D17)*F17-1)/coeff!$B$6/(F17-1),0)) ->  | N17: =IF(OR(K17="",M17=""),"",IF((K17*M17-1)>=coeff!$B$12,coeff!$B$4*(K17*M17-1)/coeff!$B$8/(K17-1),0)) ->  | O17: =IF(OR(L17="",M17=""),"",IF((L17*(1-M17)-1)>=coeff!$B$12,coeff!$B$4*(L17*(1-M17)-1)/coeff!$B$8/(L17-1),0)) -> 
G18: =IF(OR(D18="",E18=""),"",IF((D18*E18-1)>=coeff!$B$10,coeff!$B$2*(D18*E18-1)/coeff!$B$6/(E18-1),0)) ->  | H18: =IF(OR(D18="",F18=""),"",IF(((1-D18)*F18-1)>=coeff!$B$10,coeff!$B$2*((1-D18)*F18-1)/coeff!$B$6/(F18-1),0)) ->  | N18: =IF(OR(K18="",M18=""),"",IF((K18*M18-1)>=coeff!$B$12,coeff!$B$4*(K18*M18-1)/coeff!$B$8/(K18-1),0)) ->  | O18: =IF(OR(L18="",M18=""),"",IF((L18*(1-M18)-1)>=coeff!$B$12,coeff!$B$4*(L18*(1-M18)-1)/coeff!$B$8/(L18-1),0)) -> 
G19: =IF(OR(D19="",E19=""),"",IF((D19*E19-1)>=coeff!$B$10,coeff!$B$2*(D19*E19-1)/coeff!$B$6/(E19-1),0)) ->  | H19: =IF(OR(D19="",F19=""),"",IF(((1-D19)*F19-1)>=coeff!$B$10,coeff!$B$2*((1-D19)*F19-1)/coeff!$B$6/(F19-1),0)) ->  | N19: =IF(OR(K19="",M19=""),"",IF((K19*M19-1)>=coeff!$B$12,coeff!$B$4*(K19*M19-1)/coeff!$B$8/(K19-1),0)) ->  | O19: =IF(OR(L19="",M19=""),"",IF((L19*(1-M19)-1)>=coeff!$B$12,coeff!$B$4*(L19*(1-M19)-1)/coeff!$B$8/(L19-1),0)) -> 
G20: =IF(OR(D20="",E20=""),"",IF((D20*E20-1)>=coeff!$B$10,coeff!$B$2*(D20*E20-1)/coeff!$B$6/(E20-1),0)) ->  | H20: =IF(OR(D20="",F20=""),"",IF(((1-D20)*F20-1)>=coeff!$B$10,coeff!$B$2*((1-D20)*F20-1)/coeff!$B$6/(F20-1),0)) ->  | N20: =IF(OR(K20="",M20=""),"",IF((K20*M20-1)>=coeff!$B$12,coeff!$B$4*(K20*M20-1)/coeff!$B$8/(K20-1),0)) ->  | O20: =IF(OR(L20="",M20=""),"",IF((L20*(1-M20)-1)>=coeff!$B$12,coeff!$B$4*(L20*(1-M20)-1)/coeff!$B$8/(L20-1),0)) -> 
G21: =IF(OR(D21="",E21=""),"",IF((D21*E21-1)>=coeff!$B$10,coeff!$B$2*(D21*E21-1)/coeff!$B$6/(E21-1),0)) ->  | H21: =IF(OR(D21="",F21=""),"",IF(((1-D21)*F21-1)>=coeff!$B$10,coeff!$B$2*((1-D21)*F21-1)/coeff!$B$6/(F21-1),0)) ->  | N21: =IF(OR(K21="",M21=""),"",IF((K21*M21-1)>=coeff!$B$12,coeff!$B$4*(K21*M21-1)/coeff!$B$8/(K21-1),0)) ->  | O21: =IF(OR(L21="",M21=""),"",IF((L21*(1-M21)-1)>=coeff!$B$12,coeff!$B$4*(L21*(1-M21)-1)/coeff!$B$8/(L21-1),0)) -> 
G22: =IF(OR(D22="",E22=""),"",IF((D22*E22-1)>=coeff!$B$10,coeff!$B$2*(D22*E22-1)/coeff!$B$6/(E22-1),0)) ->  | H22: =IF(OR(D22="",F22=""),"",IF(((1-D22)*F22-1)>=coeff!$B$10,coeff!$B$2*((1-D22)*F22-1)/coeff!$B$6/(F22-1),0)) ->  | N22: =IF(OR(K22="",M22=""),"",IF((K22*M22-1)>=coeff!$B$12,coeff!$B$4*(K22*M22-1)/coeff!$B$8/(K22-1),0)) ->  | O22: =IF(OR(L22="",M22=""),"",IF((L22*(1-M22)-1)>=coeff!$B$12,coeff!$B$4*(L22*(1-M22)-1)/coeff!$B$8/(L22-1),0)) -> 
G23: =IF(OR(D23="",E23=""),"",IF((D23*E23-1)>=coeff!$B$10,coeff!$B$2*(D23*E23-1)/coeff!$B$6/(E23-1),0)) ->  | H23: =IF(OR(D23="",F23=""),"",IF(((1-D23)*F23-1)>=coeff!$B$10,coeff!$B$2*((1-D23)*F23-1)/coeff!$B$6/(F23-1),0)) ->  | N23: =IF(OR(K23="",M23=""),"",IF((K23*M23-1)>=coeff!$B$12,coeff!$B$4*(K23*M23-1)/coeff!$B$8/(K23-1),0)) ->  | O23: =IF(OR(L23="",M23=""),"",IF((L23*(1-M23)-1)>=coeff!$B$12,coeff!$B$4*(L23*(1-M23)-1)/coeff!$B$8/(L23-1),0)) -> 
G24: =IF(OR(D24="",E24=""),"",IF((D24*E24-1)>=coeff!$B$10,coeff!$B$2*(D24*E24-1)/coeff!$B$6/(E24-1),0)) ->  | H24: =IF(OR(D24="",F24=""),"",IF(((1-D24)*F24-1)>=coeff!$B$10,coeff!$B$2*((1-D24)*F24-1)/coeff!$B$6/(F24-1),0)) ->  | N24: =IF(OR(K24="",M24=""),"",IF((K24*M24-1)>=coeff!$B$12,coeff!$B$4*(K24*M24-1)/coeff!$B$8/(K24-1),0)) ->  | O24: =IF(OR(L24="",M24=""),"",IF((L24*(1-M24)-1)>=coeff!$B$12,coeff!$B$4*(L24*(1-M24)-1)/coeff!$B$8/(L24-1),0)) -> 
G25: =IF(OR(D25="",E25=""),"",IF((D25*E25-1)>=coeff!$B$10,coeff!$B$2*(D25*E25-1)/coeff!$B$6/(E25-1),0)) ->  | H25: =IF(OR(D25="",F25=""),"",IF(((1-D25)*F25-1)>=coeff!$B$10,coeff!$B$2*((1-D25)*F25-1)/coeff!$B$6/(F25-1),0)) ->  | N25: =IF(OR(K25="",M25=""),"",IF((K25*M25-1)>=coeff!$B$12,coeff!$B$4*(K25*M25-1)/coeff!$B$8/(K25-1),0)) ->  | O25: =IF(OR(L25="",M25=""),"",IF((L25*(1-M25)-1)>=coeff!$B$12,coeff!$B$4*(L25*(1-M25)-1)/coeff!$B$8/(L25-1),0)) -> 
G26: =IF(OR(D26="",E26=""),"",IF((D26*E26-1)>=coeff!$B$10,coeff!$B$2*(D26*E26-1)/coeff!$B$6/(E26-1),0)) ->  | H26: =IF(OR(D26="",F26=""),"",IF(((1-D26)*F26-1)>=coeff!$B$10,coeff!$B$2*((1-D26)*F26-1)/coeff!$B$6/(F26-1),0)) ->  | N26: =IF(OR(K26="",M26=""),"",IF((K26*M26-1)>=coeff!$B$12,coeff!$B$4*(K26*M26-1)/coeff!$B$8/(K26-1),0)) ->  | O26: =IF(OR(L26="",M26=""),"",IF((L26*(1-M26)-1)>=coeff!$B$12,coeff!$B$4*(L26*(1-M26)-1)/coeff!$B$8/(L26-1),0)) -> 
G27: =IF(OR(D27="",E27=""),"",IF((D27*E27-1)>=coeff!$B$10,coeff!$B$2*(D27*E27-1)/coeff!$B$6/(E27-1),0)) ->  | H27: =IF(OR(D27="",F27=""),"",IF(((1-D27)*F27-1)>=coeff!$B$10,coeff!$B$2*((1-D27)*F27-1)/coeff!$B$6/(F27-1),0)) ->  | N27: =IF(OR(K27="",M27=""),"",IF((K27*M27-1)>=coeff!$B$12,coeff!$B$4*(K27*M27-1)/coeff!$B$8/(K27-1),0)) ->  | O27: =IF(OR(L27="",M27=""),"",IF((L27*(1-M27)-1)>=coeff!$B$12,coeff!$B$4*(L27*(1-M27)-1)/coeff!$B$8/(L27-1),0)) -> 
G28: =IF(OR(D28="",E28=""),"",IF((D28*E28-1)>=coeff!$B$10,coeff!$B$2*(D28*E28-1)/coeff!$B$6/(E28-1),0)) ->  | H28: =IF(OR(D28="",F28=""),"",IF(((1-D28)*F28-1)>=coeff!$B$10,coeff!$B$2*((1-D28)*F28-1)/coeff!$B$6/(F28-1),0)) ->  | N28: =IF(OR(K28="",M28=""),"",IF((K28*M28-1)>=coeff!$B$12,coeff!$B$4*(K28*M28-1)/coeff!$B$8/(K28-1),0)) ->  | O28: =IF(OR(L28="",M28=""),"",IF((L28*(1-M28)-1)>=coeff!$B$12,coeff!$B$4*(L28*(1-M28)-1)/coeff!$B$8/(L28-1),0)) -> 
G29: =IF(OR(D29="",E29=""),"",IF((D29*E29-1)>=coeff!$B$10,coeff!$B$2*(D29*E29-1)/coeff!$B$6/(E29-1),0)) ->  | H29: =IF(OR(D29="",F29=""),"",IF(((1-D29)*F29-1)>=coeff!$B$10,coeff!$B$2*((1-D29)*F29-1)/coeff!$B$6/(F29-1),0)) ->  | N29: =IF(OR(K29="",M29=""),"",IF((K29*M29-1)>=coeff!$B$12,coeff!$B$4*(K29*M29-1)/coeff!$B$8/(K29-1),0)) ->  | O29: =IF(OR(L29="",M29=""),"",IF((L29*(1-M29)-1)>=coeff!$B$12,coeff!$B$4*(L29*(1-M29)-1)/coeff!$B$8/(L29-1),0)) -> 
G30: =IF(OR(D30="",E30=""),"",IF((D30*E30-1)>=coeff!$B$10,coeff!$B$2*(D30*E30-1)/coeff!$B$6/(E30-1),0)) ->  | H30: =IF(OR(D30="",F30=""),"",IF(((1-D30)*F30-1)>=coeff!$B$10,coeff!$B$2*((1-D30)*F30-1)/coeff!$B$6/(F30-1),0)) ->  | N30: =IF(OR(K30="",M30=""),"",IF((K30*M30-1)>=coeff!$B$12,coeff!$B$4*(K30*M30-1)/coeff!$B$8/(K30-1),0)) ->  | O30: =IF(OR(L30="",M30=""),"",IF((L30*(1-M30)-1)>=coeff!$B$12,coeff!$B$4*(L30*(1-M30)-1)/coeff!$B$8/(L30-1),0)) -> 
G31: =IF(OR(D31="",E31=""),"",IF((D31*E31-1)>=coeff!$B$10,coeff!$B$2*(D31*E31-1)/coeff!$B$6/(E31-1),0)) ->  | H31: =IF(OR(D31="",F31=""),"",IF(((1-D31)*F31-1)>=coeff!$B$10,coeff!$B$2*((1-D31)*F31-1)/coeff!$B$6/(F31-1),0)) -> 

Sheet Line
A6: =IF(NblBets!A6="","",NblBets!A6) -> Date | B6: =IF(NblBets!B6="","",NblBets!B6) -> Team1 | C6: =IF(NblBets!C6="","",NblBets!C6) -> Team2 | D6: =IF(NblBets!D6="","",NblBets!D6) -> Prob(Team1) | E6: Line | F6: ProbLine(Team1) | G6: OddsLine(Team1) | H6: OddsLine(Team2) | I6: =IF(NblBets!G6="","",NblBets!G6) -> $Bet(Team1) | J6: =IF(NblBets!H6="","",NblBets!H6) -> $Bet(Team2) | K6: Overlay
A7: =IF(NblBets!A7="","",NblBets!A7) -> 2014-11-09 | B7: =IF(NblBets!B7="","",NblBets!B7) -> Sydney | C7: =IF(NblBets!C7="","",NblBets!C7) -> Adelaide | D7: =IF(NblBets!D7="","",NblBets!D7) -> 0.481 | F7: =IF(AND(E7<>"",D7<>""),NORMDIST(((LN((D7/(1-D7)))/0.1453)+E7),0,13.486,TRUE),"") ->  | G7: 1.96 | H7: 1.93 | I7: =IF(OR(F7="",G7=""),"",IF((F7*G7-1)>=coeff!$B$11,coeff!$B$3*(F7*G7-1)/coeff!$B$6/(G7-1),0)) ->  | J7: =IF(OR(F7="",H7=""),"",IF(((1-F7)*H7-1)>=coeff!$B$11,coeff!$B$3*((1-F7)*H7-1)/coeff!$B$7/(H7-1),0)) ->  | K7: =IF(F7="","",IF(I7>0,G7*F7-1,IF(J7>0,H7*(1-F7)-1,""))) -> 
A8: =IF(NblBets!A8="","",NblBets!A8) -> 2014-11-09 | B8: =IF(NblBets!B8="","",NblBets!B8) -> Townsville | C8: =IF(NblBets!C8="","",NblBets!C8) -> New Zealand | D8: =IF(NblBets!D8="","",NblBets!D8) -> 0.715 | E8: -1.5 | F8: =IF(AND(E8<>"",D8<>""),NORMDIST(((LN((D8/(1-D8)))/0.1453)+E8),0,13.486,TRUE),"") -> 0.6398926369 | G8: 1.93 | H8: 1.98 | I8: =IF(OR(F8="",G8=""),"",IF((F8*G8-1)>=coeff!$B$11,coeff!$B$3*(F8*G8-1)/coeff!$B$6/(G8-1),0)) -> 252.6804185 | J8: =IF(OR(F8="",H8=""),"",IF(((1-F8)*H8-1)>=coeff!$B$11,coeff!$B$3*((1-F8)*H8-1)/coeff!$B$7/(H8-1),0)) -> 0 | K8: =IF(F8="","",IF(I8>0,G8*F8-1,IF(J8>0,H8*(1-F8)-1,""))) -> 0.2349927893
A9: =IF(NblBets!A9="","",NblBets!A9) -> 2014-11-09 | B9: =IF(NblBets!B9="","",NblBets!B9) -> Perth | C9: =IF(NblBets!C9="","",NblBets!C9) -> Melbourne | D9: =IF(NblBets!D9="","",NblBets!D9) -> 0.81 | E9: -9.5 | F9: =IF(AND(E9<>"",D9<>""),NORMDIST(((LN((D9/(1-D9)))/0.1453)+E9),0,13.486,TRUE),"") -> 0.514179287 | G9: 1.96 | H9: 1.94 | I9: =IF(OR(F9="",G9=""),"",IF((F9*G9-1)>=coeff!$B$11,coeff!$B$3*(F9*G9-1)/coeff!$B$6/(G9-1),0)) -> 0 | J9: =IF(OR(F9="",H9=""),"",IF(((1-F9)*H9-1)>=coeff!$B$11,coeff!$B$3*((1-F9)*H9-1)/coeff!$B$7/(H9-1),0)) -> 0 | K9: =IF(F9="","",IF(I9>0,G9*F9-1,IF(J9>0,H9*(1-F9)-1,""))) -> 
A10: =IF(NblBets!A10="","",NblBets!A10) ->  | B10: =IF(NblBets!B10="","",NblBets!B10) ->  | C10: =IF(NblBets!C10="","",NblBets!C10) ->  | D10: =IF(NblBets!D10="","",NblBets!D10) ->  | E10: =IF(NblBets!E10="","",NblBets!E10) ->  | F10: =IF(AND(E10<>"",D10<>""),NORMDIST(((LN((D10/(1-D10)))/0.1453)+E10),0,13.486,TRUE),"") ->  | I10: =IF(OR(F10="",G10=""),"",IF((F10*G10-1)>=coeff!$B$11,coeff!$B$3*(F10*G10-1)/coeff!$B$6/(G10-1),0)) ->  | J10: =IF(OR(F10="",H10=""),"",IF(((1-F10)*H10-1)>=coeff!$B$11,coeff!$B$3*((1-F10)*H10-1)/coeff!$B$7/(H10-1),0)) -> 
A11: =IF(NblBets!A11="","",NblBets!A11) ->  | B11: =IF(NblBets!B11="","",NblBets!B11) ->  | C11: =IF(NblBets!C11="","",NblBets!C11) ->  | D11: =IF(NblBets!D11="","",NblBets!D11) ->  | E11: =IF(NblBets!E11="","",NblBets!E11) ->  | F11: =IF(AND(E11<>"",D11<>""),NORMDIST(((LN((D11/(1-D11)))/0.1453)+E11),0,13.486,TRUE),"") ->  | I11: =IF(OR(F11="",G11=""),"",IF((F11*G11-1)>=coeff!$B$11,coeff!$B$3*(F11*G11-1)/coeff!$B$6/(G11-1),0)) ->  | J11: =IF(OR(F11="",H11=""),"",IF(((1-F11)*H11-1)>=coeff!$B$11,coeff!$B$3*((1-F11)*H11-1)/coeff!$B$7/(H11-1),0)) -> 
A12: =IF(NblBets!A12="","",NblBets!A12) ->  | B12: =IF(NblBets!B12="","",NblBets!B12) ->  | C12: =IF(NblBets!C12="","",NblBets!C12) ->  | D12: =IF(NblBets!D12="","",NblBets!D12) ->  | E12: =IF(NblBets!E12="","",NblBets!E12) ->  | F12: =IF(AND(E12<>"",D12<>""),NORMDIST(((LN((D12/(1-D12)))/0.1453)+E12),0,13.486,TRUE),"") ->  | I12: =IF(OR(F12="",G12=""),"",IF((F12*G12-1)>=coeff!$B$11,coeff!$B$3*(F12*G12-1)/coeff!$B$6/(G12-1),0)) ->  | J12: =IF(OR(F12="",H12=""),"",IF(((1-F12)*H12-1)>=coeff!$B$11,coeff!$B$3*((1-F12)*H12-1)/coeff!$B$7/(H12-1),0)) -> 
A13: =IF(NblBets!A13="","",NblBets!A13) ->  | B13: =IF(NblBets!B13="","",NblBets!B13) ->  | C13: =IF(NblBets!C13="","",NblBets!C13) ->  | D13: =IF(NblBets!D13="","",NblBets!D13) ->  | E13: =IF(NblBets!E13="","",NblBets!E13) ->  | F13: =IF(AND(E13<>"",D13<>""),NORMDIST(((LN((D13/(1-D13)))/0.1453)+E13),0,13.486,TRUE),"") ->  | I13: =IF(OR(F13="",G13=""),"",IF((F13*G13-1)>=coeff!$B$11,coeff!$B$3*(F13*G13-1)/coeff!$B$6/(G13-1),0)) ->  | J13: =IF(OR(F13="",H13=""),"",IF(((1-F13)*H13-1)>=coeff!$B$11,coeff!$B$3*((1-F13)*H13-1)/coeff!$B$7/(H13-1),0)) -> 
A14: =IF(NblBets!A14="","",NblBets!A14) ->  | B14: =IF(NblBets!B14="","",NblBets!B14) ->  | C14: =IF(NblBets!C14="","",NblBets!C14) ->  | D14: =IF(NblBets!D14="","",NblBets!D14) ->  | E14: =IF(NblBets!E14="","",NblBets!E14) ->  | F14: =IF(AND(E14<>"",D14<>""),NORMDIST(((LN((D14/(1-D14)))/0.1453)+E14),0,13.486,TRUE),"") ->  | I14: =IF(OR(F14="",G14=""),"",IF((F14*G14-1)>=coeff!$B$11,coeff!$B$3*(F14*G14-1)/coeff!$B$6/(G14-1),0)) ->  | J14: =IF(OR(F14="",H14=""),"",IF(((1-F14)*H14-1)>=coeff!$B$11,coeff!$B$3*((1-F14)*H14-1)/coeff!$B$7/(H14-1),0)) -> 
A15: =IF(NblBets!A15="","",NblBets!A15) ->  | B15: =IF(NblBets!B15="","",NblBets!B15) ->  | C15: =IF(NblBets!C15="","",NblBets!C15) ->  | D15: =IF(NblBets!D15="","",NblBets!D15) ->  | E15: =IF(NblBets!E15="","",NblBets!E15) ->  | F15: =IF(AND(E15<>"",D15<>""),NORMDIST(((LN((D15/(1-D15)))/0.1453)+E15),0,13.486,TRUE),"") ->  | I15: =IF(OR(F15="",G15=""),"",IF((F15*G15-1)>=coeff!$B$11,coeff!$B$3*(F15*G15-1)/coeff!$B$6/(G15-1),0)) ->  | J15: =IF(OR(F15="",H15=""),"",IF(((1-F15)*H15-1)>=coeff!$B$11,coeff!$B$3*((1-F15)*H15-1)/coeff!$B$7/(H15-1),0)) -> 
A16: =IF(NblBets!A16="","",NblBets!A16) ->  | B16: =IF(NblBets!B16="","",NblBets!B16) ->  | C16: =IF(NblBets!C16="","",NblBets!C16) ->  | D16: =IF(NblBets!D16="","",NblBets!D16) ->  | E16: =IF(NblBets!E16="","",NblBets!E16) ->  | F16: =IF(AND(E16<>"",D16<>""),NORMDIST(((LN((D16/(1-D16)))/0.1453)+E16),0,13.486,TRUE),"") ->  | I16: =IF(OR(F16="",G16=""),"",IF((F16*G16-1)>=coeff!$B$11,coeff!$B$3*(F16*G16-1)/coeff!$B$6/(G16-1),0)) ->  | J16: =IF(OR(F16="",H16=""),"",IF(((1-F16)*H16-1)>=coeff!$B$11,coeff!$B$3*((1-F16)*H16-1)/coeff!$B$7/(H16-1),0)) -> 
A17: =IF(NblBets!A17="","",NblBets!A17) ->  | B17: =IF(NblBets!B17="","",NblBets!B17) ->  | C17: =IF(NblBets!C17="","",NblBets!C17) ->  | D17: =IF(NblBets!D17="","",NblBets!D17) ->  | E17: =IF(NblBets!E17="","",NblBets!E17) ->  | F17: =IF(AND(E17<>"",D17<>""),NORMDIST(((LN((D17/(1-D17)))/0.1453)+E17),0,13.486,TRUE),"") ->  | I17: =IF(OR(F17="",G17=""),"",IF((F17*G17-1)>=coeff!$B$11,coeff!$B$3*(F17*G17-1)/coeff!$B$6/(G17-1),0)) ->  | J17: =IF(OR(F17="",H17=""),"",IF(((1-F17)*H17-1)>=coeff!$B$11,coeff!$B$3*((1-F17)*H17-1)/coeff!$B$7/(H17-1),0)) -> 
A18: =IF(NblBets!A18="","",NblBets!A18) ->  | B18: =IF(NblBets!B18="","",NblBets!B18) ->  | C18: =IF(NblBets!C18="","",NblBets!C18) ->  | D18: =IF(NblBets!D18="","",NblBets!D18) ->  | E18: =IF(NblBets!E18="","",NblBets!E18) ->  | F18: =IF(AND(E18<>"",D18<>""),NORMDIST(((LN((D18/(1-D18)))/0.1453)+E18),0,13.486,TRUE),"") ->  | I18: =IF(OR(F18="",G18=""),"",IF((F18*G18-1)>=coeff!$B$11,coeff!$B$3*(F18*G18-1)/coeff!$B$6/(G18-1),0)) ->  | J18: =IF(OR(F18="",H18=""),"",IF(((1-F18)*H18-1)>=coeff!$B$11,coeff!$B$3*((1-F18)*H18-1)/coeff!$B$7/(H18-1),0)) -> 
A19: =IF(NblBets!A19="","",NblBets!A19) ->  | B19: =IF(NblBets!B19="","",NblBets!B19) ->  | C19: =IF(NblBets!C19="","",NblBets!C19) ->  | D19: =IF(NblBets!D19="","",NblBets!D19) ->  | E19: =IF(NblBets!E19="","",NblBets!E19) ->  | F19: =IF(AND(E19<>"",D19<>""),NORMDIST(((LN((D19/(1-D19)))/0.1453)+E19),0,13.486,TRUE),"") ->  | I19: =IF(OR(F19="",G19=""),"",IF((F19*G19-1)>=coeff!$B$11,coeff!$B$3*(F19*G19-1)/coeff!$B$6/(G19-1),0)) ->  | J19: =IF(OR(F19="",H19=""),"",IF(((1-F19)*H19-1)>=coeff!$B$11,coeff!$B$3*((1-F19)*H19-1)/coeff!$B$7/(H19-1),0)) -> 
A20: =IF(NblBets!A20="","",NblBets!A20) ->  | B20: =IF(NblBets!B20="","",NblBets!B20) ->  | C20: =IF(NblBets!C20="","",NblBets!C20) ->  | D20: =IF(NblBets!D20="","",NblBets!D20) ->  | E20: =IF(NblBets!E20="","",NblBets!E20) ->  | F20: =IF(AND(E20<>"",D20<>""),NORMDIST(((LN((D20/(1-D20)))/0.1453)+E20),0,13.486,TRUE),"") ->  | I20: =IF(OR(F20="",G20=""),"",IF((F20*G20-1)>=coeff!$B$11,coeff!$B$3*(F20*G20-1)/coeff!$B$6/(G20-1),0)) ->  | J20: =IF(OR(F20="",H20=""),"",IF(((1-F20)*H20-1)>=coeff!$B$11,coeff!$B$3*((1-F20)*H20-1)/coeff!$B$7/(H20-1),0)) -> 
A21: =IF(NblBets!A21="","",NblBets!A21) ->  | B21: =IF(NblBets!B21="","",NblBets!B21) ->  | C21: =IF(NblBets!C21="","",NblBets!C21) ->  | D21: =IF(NblBets!D21="","",NblBets!D21) ->  | E21: =IF(NblBets!E21="","",NblBets!E21) ->  | F21: =IF(AND(E21<>"",D21<>""),NORMDIST(((LN((D21/(1-D21)))/0.1453)+E21),0,13.486,TRUE),"") ->  | I21: =IF(OR(F21="",G21=""),"",IF((F21*G21-1)>=coeff!$B$11,coeff!$B$3*(F21*G21-1)/coeff!$B$6/(G21-1),0)) ->  | J21: =IF(OR(F21="",H21=""),"",IF(((1-F21)*H21-1)>=coeff!$B$11,coeff!$B$3*((1-F21)*H21-1)/coeff!$B$7/(H21-1),0)) -> 
A22: =IF(NblBets!A22="","",NblBets!A22) ->  | B22: =IF(NblBets!B22="","",NblBets!B22) ->  | C22: =IF(NblBets!C22="","",NblBets!C22) ->  | D22: =IF(NblBets!D22="","",NblBets!D22) ->  | E22: =IF(NblBets!E22="","",NblBets!E22) ->  | F22: =IF(AND(E22<>"",D22<>""),NORMDIST(((LN((D22/(1-D22)))/0.1453)+E22),0,13.486,TRUE),"") ->  | I22: =IF(OR(F22="",G22=""),"",IF((F22*G22-1)>=coeff!$B$11,coeff!$B$3*(F22*G22-1)/coeff!$B$6/(G22-1),0)) ->  | J22: =IF(OR(F22="",H22=""),"",IF(((1-F22)*H22-1)>=coeff!$B$11,coeff!$B$3*((1-F22)*H22-1)/coeff!$B$7/(H22-1),0)) -> 
A23: =IF(NblBets!A23="","",NblBets!A23) ->  | B23: =IF(NblBets!B23="","",NblBets!B23) ->  | C23: =IF(NblBets!C23="","",NblBets!C23) ->  | D23: =IF(NblBets!D23="","",NblBets!D23) ->  | E23: =IF(NblBets!E23="","",NblBets!E23) ->  | F23: =IF(AND(E23<>"",D23<>""),NORMDIST(((LN((D23/(1-D23)))/0.1453)+E23),0,13.486,TRUE),"") ->  | I23: =IF(OR(F23="",G23=""),"",IF((F23*G23-1)>=coeff!$B$11,coeff!$B$3*(F23*G23-1)/coeff!$B$6/(G23-1),0)) ->  | J23: =IF(OR(F23="",H23=""),"",IF(((1-F23)*H23-1)>=coeff!$B$11,coeff!$B$3*((1-F23)*H23-1)/coeff!$B$7/(H23-1),0)) -> 
A24: =IF(NblBets!A24="","",NblBets!A24) ->  | B24: =IF(NblBets!B24="","",NblBets!B24) ->  | C24: =IF(NblBets!C24="","",NblBets!C24) ->  | D24: =IF(NblBets!D24="","",NblBets!D24) ->  | E24: =IF(NblBets!E24="","",NblBets!E24) ->  | F24: =IF(AND(E24<>"",D24<>""),NORMDIST(((LN((D24/(1-D24)))/0.1453)+E24),0,13.486,TRUE),"") ->  | I24: =IF(OR(F24="",G24=""),"",IF((F24*G24-1)>=coeff!$B$11,coeff!$B$3*(F24*G24-1)/coeff!$B$6/(G24-1),0)) ->  | J24: =IF(OR(F24="",H24=""),"",IF(((1-F24)*H24-1)>=coeff!$B$11,coeff!$B$3*((1-F24)*H24-1)/coeff!$B$7/(H24-1),0)) -> 
A25: =IF(NblBets!A25="","",NblBets!A25) ->  | B25: =IF(NblBets!B25="","",NblBets!B25) ->  | C25: =IF(NblBets!C25="","",NblBets!C25) ->  | D25: =IF(NblBets!D25="","",NblBets!D25) ->  | E25: =IF(NblBets!E25="","",NblBets!E25) ->  | F25: =IF(AND(E25<>"",D25<>""),NORMDIST(((LN((D25/(1-D25)))/0.1453)+E25),0,13.486,TRUE),"") ->  | I25: =IF(OR(F25="",G25=""),"",IF((F25*G25-1)>=coeff!$B$11,coeff!$B$3*(F25*G25-1)/coeff!$B$6/(G25-1),0)) ->  | J25: =IF(OR(F25="",H25=""),"",IF(((1-F25)*H25-1)>=coeff!$B$11,coeff!$B$3*((1-F25)*H25-1)/coeff!$B$7/(H25-1),0)) -> 
A26: =IF(NblBets!A26="","",NblBets!A26) ->  | B26: =IF(NblBets!B26="","",NblBets!B26) ->  | C26: =IF(NblBets!C26="","",NblBets!C26) ->  | D26: =IF(NblBets!D26="","",NblBets!D26) ->  | E26: =IF(NblBets!E26="","",NblBets!E26) ->  | F26: =IF(AND(E26<>"",D26<>""),NORMDIST(((LN((D26/(1-D26)))/0.1453)+E26),0,13.486,TRUE),"") ->  | I26: =IF(OR(F26="",G26=""),"",IF((F26*G26-1)>=coeff!$B$11,coeff!$B$3*(F26*G26-1)/coeff!$B$6/(G26-1),0)) ->  | J26: =IF(OR(F26="",H26=""),"",IF(((1-F26)*H26-1)>=coeff!$B$11,coeff!$B$3*((1-F26)*H26-1)/coeff!$B$7/(H26-1),0)) -> 
A27: =IF(NblBets!A27="","",NblBets!A27) ->  | B27: =IF(NblBets!B27="","",NblBets!B27) ->  | C27: =IF(NblBets!C27="","",NblBets!C27) ->  | D27: =IF(NblBets!D27="","",NblBets!D27) ->  | E27: =IF(NblBets!E27="","",NblBets!E27) ->  | F27: =IF(AND(E27<>"",D27<>""),NORMDIST(((LN((D27/(1-D27)))/0.1453)+E27),0,13.486,TRUE),"") ->  | I27: =IF(OR(F27="",G27=""),"",IF((F27*G27-1)>=coeff!$B$11,coeff!$B$3*(F27*G27-1)/coeff!$B$6/(G27-1),0)) ->  | J27: =IF(OR(F27="",H27=""),"",IF(((1-F27)*H27-1)>=coeff!$B$11,coeff!$B$3*((1-F27)*H27-1)/coeff!$B$7/(H27-1),0)) -> 
F28: =IF(AND(E28<>"",D28<>""),NORMDIST(((LN((D28/(1-D28)))/0.1453)+E28),0,13.486,TRUE),"") ->  | I28: =IF(OR(F28="",G28=""),"",IF((F28*G28-1)>=coeff!$B$11,coeff!$B$3*(F28*G28-1)/coeff!$B$6/(G28-1),0)) ->  | J28: =IF(OR(F28="",H28=""),"",IF(((1-F28)*H28-1)>=coeff!$B$11,coeff!$B$3*((1-F28)*H28-1)/coeff!$B$7/(H28-1),0)) -> 
I29: =IF(OR(F29="",G29=""),"",IF((F29*G29-1)>=coeff!$B$11,coeff!$B$3*(F29*G29-1)/coeff!$B$6/(G29-1),0)) ->  | J29: =IF(OR(F29="",H29=""),"",IF(((1-F29)*H29-1)>=coeff!$B$11,coeff!$B$3*((1-F29)*H29-1)/coeff!$B$7/(H29-1),0)) -> 
I30: =IF(OR(F30="",G30=""),"",IF((F30*G30-1)>=coeff!$B$11,coeff!$B$3*(F30*G30-1)/coeff!$B$6/(G30-1),0)) ->  | J30: =IF(OR(F30="",H30=""),"",IF(((1-F30)*H30-1)>=coeff!$B$11,coeff!$B$3*((1-F30)*H30-1)/coeff!$B$7/(H30-1),0)) -> 
I31: =IF(OR(F31="",G31=""),"",IF((F31*G31-1)>=coeff!$B$11,coeff!$B$3*(F31*G31-1)/coeff!$B$6/(G31-1),0)) ->  | J31: =IF(OR(F31="",H31=""),"",IF(((1-F31)*H31-1)>=coeff!$B$11,coeff!$B$3*((1-F31)*H31-1)/coeff!$B$7/(H31-1),0)) -> 

Sheet Multiple Lines
A2: Date | B2: Team1 | C2: Team2 | D2: ProbT1 | E2: Line | F2: ProbLine(Team1) | G2: OddsLine(Team1) | H2: OddsLine(Team2) | I2: $BetT1 | J2: $BetT2 | K2: Overlay | L2: ExpReturn | M2: Change cells my colour only
A3: =IF(Line!A7="","",Line!A7) -> 2014-11-09 | B3: =IF(Line!B7="","",Line!B7) -> Sydney | C3: =IF(Line!C7="","",Line!C7) -> Adelaide | D3: =IF(Line!D7="","",Line!D7) -> 0.481 | E3: -5 | F3: =IF(AND(E3<>"",D3<>""),NORMDIST(((LN((D3/(1-D3)))/0.1453)+E3),0,13.486,TRUE),"") -> 0.3410648736 | G3: 1.9 | H3: 1.9 | I3: =IF(E3="","",IF((F3*G3-1)>=coeff!$B$11,IF(L3=MAX($L$3:$L$7),coeff!$B$3/coeff!$B$7*(F3*G3-1)/(G3-1),0),0)) -> 0 | J3: =IF(E3="","",IF((H3*(1-F3)-1)>=coeff!$B$11,IF(L3=MAX($L$3:$L$7),coeff!$B$3/coeff!$B$7*((1-F3)*H3-1)/(H3-1),0),0)) -> 279.9741557 | K3: =IF(F3="","",IF(I3>0,G3*F3-1,IF(J3>0,H3*(1-F3)-1,""))) -> 0.2519767401 | L3: =IF(F3="","",IF((F3*G3-1)>=coeff!$B$11,F3*(F3*G3-1)-(F3*G3-1)/(G3-1)*(1-F3),IF((H3*(1-F3)-1)>=coeff!$B$11,(1-F3)*((1-F3)*H3-1)-((1-F3)*H3-1)/(H3-1)*(1-(1-F3)),0))) -> 0.07054697508
A4: =IF(A3="","",A3) -> 2014-11-09 | B4: =IF(B3="","",B3) -> Sydney | C4: =IF(C3="","",C3) -> Adelaide | D4: =IF(D3="","",D3) -> 0.481 | E4: -4.5 | F4: =IF(AND(E4<>"",D4<>""),NORMDIST(((LN((D4/(1-D4)))/0.1453)+E4),0,13.486,TRUE),"") -> 0.3547665785 | G4: 1.85 | H4: 1.95 | I4: =IF(E4="","",IF((F4*G4-1)>=coeff!$B$11,IF(L4=MAX($L$3:$L$7),coeff!$B$3/coeff!$B$7*(F4*G4-1)/(G4-1),0),0)) -> 0 | J4: =IF(E4="","",IF((H4*(1-F4)-1)>=coeff!$B$11,IF(L4=MAX($L$3:$L$7),coeff!$B$3/coeff!$B$7*((1-F4)*H4-1)/(H4-1),0),0)) -> 0 | K4: =IF(F4="","",IF(I4>0,G4*F4-1,IF(J4>0,H4*(1-F4)-1,""))) ->  | L4: =IF(F4="","",IF((F4*G4-1)>=coeff!$B$11,F4*(F4*G4-1)-(F4*G4-1)/(G4-1)*(1-F4),IF((H4*(1-F4)-1)>=coeff!$B$11,(1-F4)*((1-F4)*H4-1)-((1-F4)*H4-1)/(H4-1)*(1-(1-F4)),0))) -> 0.07017885348
A5: =IF(A4="","",A4) -> 2014-11-09 | B5: =IF(B4="","",B4) -> Sydney | C5: =IF(C4="","",C4) -> Adelaide | D5: =IF(D4="","",D4) -> 0.481 | E5: -4 | F5: =IF(AND(E5<>"",D5<>""),NORMDIST(((LN((D5/(1-D5)))/0.1453)+E5),0,13.486,TRUE),"") -> 0.3686587945 | G5: 1.8 | H5: 2 | I5: =IF(E5="","",IF((F5*G5-1)>=coeff!$B$11,IF(L5=MAX($L$3:$L$7),coeff!$B$3/coeff!$B$7*(F5*G5-1)/(G5-1),0),0)) -> 0 | J5: =IF(E5="","",IF((H5*(1-F5)-1)>=coeff!$B$11,IF(L5=MAX($L$3:$L$7),coeff!$B$3/coeff!$B$7*((1-F5)*H5-1)/(H5-1),0),0)) -> 0 | L5: =IF(F5="","",IF((F5*G5-1)>=coeff!$B$11,F5*(F5*G5-1)-(F5*G5-1)/(G5-1)*(1-F5),IF((H5*(1-F5)-1)>=coeff!$B$11,(1-F5)*((1-F5)*H5-1)-((1-F5)*H5-1)/(H5-1)*(1-(1-F5)),0))) -> 0.06900204907
A6: 2014-11-09 | B6: Sydney | C6: Adelaide | D6: 0.481 | E6: -3.5 | F6: =IF(AND(E6<>"",D6<>""),NORMDIST(((LN((D6/(1-D6)))/0.1453)+E6),0,13.486,TRUE),"") -> 0.3827248243 | G6: 1.75 | H6: 2.05 | I6: =IF(E6="","",IF((F6*G6-1)>=coeff!$B$11,IF(L6=MAX($L$3:$L$7),coeff!$B$3/coeff!$B$7*(F6*G6-1)/(G6-1),0),0)) -> 0 | J6: =IF(E6="","",IF((H6*(1-F6)-1)>=coeff!$B$11,IF(L6=MAX($L$3:$L$7),coeff!$B$3/coeff!$B$7*((1-F6)*H6-1)/(H6-1),0),0)) -> 0 | L6: =IF(F6="","",IF((F6*G6-1)>=coeff!$B$11,F6*(F6*G6-1)-(F6*G6-1)/(G6-1)*(1-F6),IF((H6*(1-F6)-1)>=coeff!$B$11,(1-F6)*((1-F6)*H6-1)-((1-F6)*H6-1)/(H6-1)*(1-(1-F6)),0))) -> 0.06709014273
A7: 2014-11-09 | B7: Sydney | C7: Adelaide | D7: 0.481 | E7: -3 | F7: =IF(AND(E7<>"",D7<>""),NORMDIST(((LN((D7/(1-D7)))/0.1453)+E7),0,13.486,TRUE),"") -> 0.3969472814 | G7: 1.7 | H7: 2.1 | I7: =IF(E7="","",IF((F7*G7-1)>=coeff!$B$11,IF(L7=MAX($L$3:$L$7),coeff!$B$3/coeff!$B$7*(F7*G7-1)/(G7-1),0),0)) -> 0 | J7: =IF(E7="","",IF((H7*(1-F7)-1)>=coeff!$B$11,IF(L7=MAX($L$3:$L$7),coeff!$B$3/coeff!$B$7*((1-F7)*H7-1)/(H7-1),0),0)) -> 0 | L7: =IF(F7="","",IF((F7*G7-1)>=coeff!$B$11,F7*(F7*G7-1)-(F7*G7-1)/(G7-1)*(1-F7),IF((H7*(1-F7)-1)>=coeff!$B$11,(1-F7)*((1-F7)*H7-1)-((1-F7)*H7-1)/(H7-1)*(1-(1-F7)),0))) -> 0.06452242351
A9: Date | B9: Team1 | C9: Team2 | D9: ProbT1 | E9: Line | F9: ProbLine(Team1) | G9: OddsLine(Team1) | H9: OddsLine(Team2) | I9: $BetT1 | J9: $BetT2 | K9: Overlay | L9: ExpReturn
A10: =IF(Line!A8="","",Line!A8) -> 2014-11-09 | B10: =IF(Line!B8="","",Line!B8) -> Townsville | C10: =IF(Line!C8="","",Line!C8) -> New Zealand | D10: =IF(Line!D8="","",Line!D8) -> 0.715 | E10: -5 | F10: =IF(AND(E10<>"",D10<>""),NORMDIST(((LN((D10/(1-D10)))/0.1453)+E10),0,13.486,TRUE),"") -> 0.5392893076 | G10: 1.9 | H10: 1.9 | I10: =IF(F10="","",IF((F10*G10-1)>=coeff!$B$11,IF(L10=MAX($L$10:$L$14),coeff!$B$3/coeff!$B$7*(F10*G10-1)/(G10-1),0),0)) -> 0 | J10: =IF(F10="","",IF((H10*(1-F10)-1)>=coeff!$B$11,IF(L10=MAX($L$10:$L$14),coeff!$B$3/coeff!$B$7*((1-F10)*H10-1)/(H10-1),0),0)) -> 0 | K10: =IF(F10="","",IF(I10>0,G10*F10-1,IF(J10>0,H10*(1-F10)-1,""))) ->  | L10: =IF(F10="","",IF((F10*G10-1)>=coeff!$B$11,F10*(F10*G10-1)-(F10*G10-1)/(G10-1)*(1-F10),IF((H10*(1-F10)-1)>=coeff!$B$11,(1-F10)*((1-F10)*H10-1)-((1-F10)*H10-1)/(H10-1)*(1-(1-F10)),0))) -> 0
A11: =IF(A10="","",A10) -> 2014-11-09 | B11: =IF(B10="","",B10) -> Townsville | C11: =IF(C10="","",C10) -> New Zealand | D11: =IF(D10="","",D10) -> 0.715 | E11: -4.5 | F11: =IF(AND(E11<>"",D11<>""),NORMDIST(((LN((D11/(1-D11)))/0.1453)+E11),0,13.486,TRUE),"") -> 0.5539782538 | G11: 1.85 | H11: 1.95 | I11: =IF(F11="","",IF((F11*G11-1)>=coeff!$B$11,IF(L11=MAX($L$10:$L$14),coeff!$B$3/coeff!$B$7*(F11*G11-1)/(G11-1),0),0)) -> 0 | J11: =IF(F11="","",IF((H11*(1-F11)-1)>=coeff!$B$11,IF(L11=MAX($L$10:$L$14),coeff!$B$3/coeff!$B$7*((1-F11)*H11-1)/(H11-1),0),0)) -> 0 | L11: =IF(F11="","",IF((F11*G11-1)>=coeff!$B$11,F11*(F11*G11-1)-(F11*G11-1)/(G11-1)*(1-F11),IF((H11*(1-F11)-1)>=coeff!$B$11,(1-F11)*((1-F11)*H11-1)-((1-F11)*H11-1)/(H11-1)*(1-(1-F11)),0))) -> 0
A12: =IF(A11="","",A11) -> 2014-11-09 | B12: =IF(B11="","",B11) -> Townsville | C12: =IF(C11="","",C11) -> New Zealand | D12: =IF(D11="","",D11) -> 0.715 | E12: -4 | F12: =IF(AND(E12<>"",D12<>""),NORMDIST(((LN((D12/(1-D12)))/0.1453)+E12),0,13.486,TRUE),"") -> 0.5685934816 | G12: 1.8 | H12: 2 | I12: =IF(F12="","",IF((F12*G12-1)>=coeff!$B$11,IF(L12=MAX($L$10:$L$14),coeff!$B$3/coeff!$B$7*(F12*G12-1)/(G12-1),0),0)) -> 0 | J12: =IF(F12="","",IF((H12*(1-F12)-1)>=coeff!$B$11,IF(L12=MAX($L$10:$L$14),coeff!$B$3/coeff!$B$7*((1-F12)*H12-1)/(H12-1),0),0)) -> 0 | L12: =IF(F12="","",IF((F12*G12-1)>=coeff!$B$11,F12*(F12*G12-1)-(F12*G12-1)/(G12-1)*(1-F12),IF((H12*(1-F12)-1)>=coeff!$B$11,(1-F12)*((1-F12)*H12-1)-((1-F12)*H12-1)/(H12-1)*(1-(1-F12)),0))) -> 0
A13: 2014-11-09 | B13: Townsville | C13: New Zealand | D13: 0.715 | E13: -3.5 | F13: =IF(AND(E13<>"",D13<>""),NORMDIST(((LN((D13/(1-D13)))/0.1453)+E13),0,13.486,TRUE),"") -> 0.5831153878 | G13: 1.75 | H13: 2.05 | I13: =IF(F13="","",IF((F13*G13-1)>=coeff!$B$11,IF(L13=MAX($L$10:$L$14),coeff!$B$3/coeff!$B$7*(F13*G13-1)/(G13-1),0),0)) -> 0 | J13: =IF(F13="","",IF((H13*(1-F13)-1)>=coeff!$B$11,IF(L13=MAX($L$10:$L$14),coeff!$B$3/coeff!$B$7*((1-F13)*H13-1)/(H13-1),0),0)) -> 0 | L13: =IF(F13="","",IF((F13*G13-1)>=coeff!$B$11,F13*(F13*G13-1)-(F13*G13-1)/(G13-1)*(1-F13),IF((H13*(1-F13)-1)>=coeff!$B$11,(1-F13)*((1-F13)*H13-1)-((1-F13)*H13-1)/(H13-1)*(1-(1-F13)),0))) -> 0
A14: 2014-11-09 | B14: Townsville | C14: New Zealand | D14: 0.715 | E14: -3 | F14: =IF(AND(E14<>"",D14<>""),NORMDIST(((LN((D14/(1-D14)))/0.1453)+E14),0,13.486,TRUE),"") -> 0.59752475 | G14: 1.7 | H14: 2.1 | I14: =IF(F14="","",IF((F14*G14-1)>=coeff!$B$11,IF(L14=MAX($L$10:$L$14),coeff!$B$3/coeff!$B$7*(F14*G14-1)/(G14-1),0),0)) -> 0 | J14: =IF(F14="","",IF((H14*(1-F14)-1)>=coeff!$B$11,IF(L14=MAX($L$10:$L$14),coeff!$B$3/coeff!$B$7*((1-F14)*H14-1)/(H14-1),0),0)) -> 0 | L14: =IF(F14="","",IF((F14*G14-1)>=coeff!$B$11,F14*(F14*G14-1)-(F14*G14-1)/(G14-1)*(1-F14),IF((H14*(1-F14)-1)>=coeff!$B$11,(1-F14)*((1-F14)*H14-1)-((1-F14)*H14-1)/(H14-1)*(1-(1-F14)),0))) -> 0
A16: Date | B16: Team1 | C16: Team2 | D16: ProbT1 | E16: Line | F16: ProbLine(Team1) | G16: OddsLine(Team1) | H16: OddsLine(Team2) | I16: $BetT1 | J16: $BetT2 | K16: Overlay | L16: ExpReturn
A17: =IF(Line!A9="","",Line!A9) -> 2014-11-09 | B17: =IF(Line!B9="","",Line!B9) -> Perth | C17: =IF(Line!C9="","",Line!C9) -> Melbourne | D17: =IF(Line!D9="","",Line!D9) -> 0.81 | E17: -5 | F17: =IF(AND(E17<>"",D17<>""),NORMDIST(((LN((D17/(1-D17)))/0.1453)+E17),0,13.486,TRUE),"") -> 0.6440215012 | G17: 1.9 | H17: 1.9 | I17: =IF(F17="","",IF((F17*G17-1)>=coeff!$B$11,IF(L17=MAX($L$17:$L$21),coeff!$B$3/coeff!$B$7*(F17*G17-1)/(G17-1),0),0)) -> 248.4898359 | J17: =IF(F17="","",IF((H17*(1-F17)-1)>=coeff!$B$11,IF(L17=MAX($L$17:$L$21),coeff!$B$3/coeff!$B$7*((1-F17)*H17-1)/(H17-1),0),0)) -> 0 | K17: =IF(F17="","",IF(I17>0,G17*F17-1,IF(J17>0,H17*(1-F17)-1,""))) -> 0.2236408523 | L17: =IF(F17="","",IF((F17*G17-1)>=coeff!$B$11,F17*(F17*G17-1)-(F17*G17-1)/(G17-1)*(1-F17),IF((H17*(1-F17)-1)>=coeff!$B$11,(1-F17)*((1-F17)*H17-1)-((1-F17)*H17-1)/(H17-1)*(1-(1-F17)),0))) -> 0.05557247867
A18: =IF(A17="","",A17) -> 2014-11-09 | B18: =IF(B17="","",B17) -> Perth | C18: =IF(C17="","",C17) -> Melbourne | D18: =IF(D17="","",D17) -> 0.81 | E18: -4.5 | F18: =IF(AND(E18<>"",D18<>""),NORMDIST(((LN((D18/(1-D18)))/0.1453)+E18),0,13.486,TRUE),"") -> 0.6577405768 | G18: 1.85 | H18: 1.95 | I18: =IF(F18="","",IF((F18*G18-1)>=coeff!$B$11,IF(L18=MAX($L$17:$L$21),coeff!$B$3/coeff!$B$7*(F18*G18-1)/(G18-1),0),0)) -> 0 | J18: =IF(F18="","",IF((H18*(1-F18)-1)>=coeff!$B$11,IF(L18=MAX($L$17:$L$21),coeff!$B$3/coeff!$B$7*((1-F18)*H18-1)/(H18-1),0),0)) -> 0 | L18: =IF(F18="","",IF((F18*G18-1)>=coeff!$B$11,F18*(F18*G18-1)-(F18*G18-1)/(G18-1)*(1-F18),IF((H18*(1-F18)-1)>=coeff!$B$11,(1-F18)*((1-F18)*H18-1)-((1-F18)*H18-1)/(H18-1)*(1-(1-F18)),0))) -> 0.05530699002
A19: =IF(A18="","",A18) -> 2014-11-09 | B19: =IF(B18="","",B18) -> Perth | C19: =IF(C18="","",C18) -> Melbourne | D19: =IF(D18="","",D18) -> 0.81 | E19: -4 | F19: =IF(AND(E19<>"",D19<>""),NORMDIST(((LN((D19/(1-D19)))/0.1453)+E19),0,13.486,TRUE),"") -> 0.6712545613 | G19: 1.8 | H19: 2 | I19: =IF(F19="","",IF((F19*G19-1)>=coeff!$B$11,IF(L19=MAX($L$17:$L$21),coeff!$B$3/coeff!$B$7*(F19*G19-1)/(G19-1),0),0)) -> 0 | J19: =IF(F19="","",IF((H19*(1-F19)-1)>=coeff!$B$11,IF(L19=MAX($L$17:$L$21),coeff!$B$3/coeff!$B$7*((1-F19)*H19-1)/(H19-1),0),0)) -> 0 | L19: =IF(F19="","",IF((F19*G19-1)>=coeff!$B$11,F19*(F19*G19-1)-(F19*G19-1)/(G19-1)*(1-F19),IF((H19*(1-F19)-1)>=coeff!$B$11,(1-F19)*((1-F19)*H19-1)-((1-F19)*H19-1)/(H19-1)*(1-(1-F19)),0))) -> 0.0542143527
A20: 2014-11-09 | B20: Perth | C20: Melbourne | D20: 0.81 | E20: -3.5 | F20: =IF(AND(E20<>"",D20<>""),NORMDIST(((LN((D20/(1-D20)))/0.1453)+E20),0,13.486,TRUE),"") -> 0.6845482367 | G20: 1.75 | H20: 2.05 | I20: =IF(F20="","",IF((F20*G20-1)>=coeff!$B$11,IF(L20=MAX($L$17:$L$21),coeff!$B$3/coeff!$B$7*(F20*G20-1)/(G20-1),0),0)) -> 0 | J20: =IF(F20="","",IF((H20*(1-F20)-1)>=coeff!$B$11,IF(L20=MAX($L$17:$L$21),coeff!$B$3/coeff!$B$7*((1-F20)*H20-1)/(H20-1),0),0)) -> 0 | L20: =IF(F20="","",IF((F20*G20-1)>=coeff!$B$11,F20*(F20*G20-1)-(F20*G20-1)/(G20-1)*(1-F20),IF((H20*(1-F20)-1)>=coeff!$B$11,(1-F20)*((1-F20)*H20-1)-((1-F20)*H20-1)/(H20-1)*(1-(1-F20)),0))) -> 0.05225057287
A21: 2014-11-09 | B21: Perth | C21: Melbourne | D21: 0.81 | E21: -3 | F21: =IF(AND(E21<>"",D21<>""),NORMDIST(((LN((D21/(1-D21)))/0.1453)+E21),0,13.486,TRUE),"") -> 0.6976072334 | G21: 1.7 | H21: 2.1 | I21: =IF(F21="","",IF((F21*G21-1)>=coeff!$B$11,IF(L21=MAX($L$17:$L$21),coeff!$B$3/coeff!$B$7*(F21*G21-1)/(G21-1),0),0)) -> 0 | J21: =IF(F21="","",IF((H21*(1-F21)-1)>=coeff!$B$11,IF(L21=MAX($L$17:$L$21),coeff!$B$3/coeff!$B$7*((1-F21)*H21-1)/(H21-1),0),0)) -> 0 | L21: =IF(F21="","",IF((F21*G21-1)>=coeff!$B$11,F21*(F21*G21-1)-(F21*G21-1)/(G21-1)*(1-F21),IF((H21*(1-F21)-1)>=coeff!$B$11,(1-F21)*((1-F21)*H21-1)-((1-F21)*H21-1)/(H21-1)*(1-(1-F21)),0))) -> 0.04938688431
A23: Date | B23: Team1 | C23: Team2 | D23: ProbT1 | E23: Line | F23: ProbLine(Team1) | G23: OddsLine(Team1) | H23: OddsLine(Team2) | I23: $BetT1 | J23: $BetT2 | K23: Overlay | L23: ExpReturn
A24: =IF(Line!A10="","",Line!A10) ->  | B24: =IF(Line!B10="","",Line!B10) ->  | C24: =IF(Line!C10="","",Line!C10) ->  | D24: =IF(Line!D10="","",Line!D10) ->  | E24: -5 | F24: =IF(AND(E24<>"",D24<>""),NORMDIST(((LN((D24/(1-D24)))/0.1453)+E24),0,13.486,TRUE),"") ->  | G24: 1.9 | H24: 1.9 | I24: =IF(F24="","",IF((F24*G24-1)>=coeff!$B$11,IF(L24=MAX($L$24:$L$28),coeff!$B$3/coeff!$B$7*(F24*G24-1)/(G24-1),0),0)) ->  | J24: =IF(F24="","",IF((H24*(1-F24)-1)>=coeff!$B$11,IF(L24=MAX($L$24:$L$28),coeff!$B$3/coeff!$B$7*((1-F24)*H24-1)/(H24-1),0),0)) ->  | K24: =IF(F24="","",IF(I24>0,G24*F24-1,IF(J24>0,H24*(1-F24)-1,""))) ->  | L24: =IF(F24="","",IF((F24*G24-1)>=coeff!$B$11,F24*(F24*G24-1)-(F24*G24-1)/(G24-1)*(1-F24),IF((H24*(1-F24)-1)>=coeff!$B$11,(1-F24)*((1-F24)*H24-1)-((1-F24)*H24-1)/(H24-1)*(1-(1-F24)),0))) -> 
A25: =IF(A24="","",A24) ->  | B25: =IF(B24="","",B24) ->  | C25: =IF(C24="","",C24) ->  | D25: =IF(D24="","",D24) ->  | E25: -4.5 | F25: =IF(AND(E25<>"",D25<>""),NORMDIST(((LN((D25/(1-D25)))/0.1453)+E25),0,13.486,TRUE),"") ->  | G25: 1.85 | H25: 1.95 | I25: =IF(F25="","",IF((F25*G25-1)>=coeff!$B$11,IF(L25=MAX($L$24:$L$28),coeff!$B$3/coeff!$B$7*(F25*G25-1)/(G25-1),0),0)) ->  | J25: =IF(F25="","",IF((H25*(1-F25)-1)>=coeff!$B$11,IF(L25=MAX($L$24:$L$28),coeff!$B$3/coeff!$B$7*((1-F25)*H25-1)/(H25-1),0),0)) ->  | L25: =IF(F25="","",IF((F25*G25-1)>=coeff!$B$11,F25*(F25*G25-1)-(F25*G25-1)/(G25-1)*(1-F25),IF((H25*(1-F25)-1)>=coeff!$B$11,(1-F25)*((1-F25)*H25-1)-((1-F25)*H25-1)/(H25-1)*(1-(1-F25)),0))) -> 
E26: -4 | F26: =IF(AND(E26<>"",D26<>""),NORMDIST(((LN((D26/(1-D26)))/0.1453)+E26),0,13.486,TRUE),"") ->  | G26: 1.8 | H26: 2 | I26: =IF(F26="","",IF((F26*G26-1)>=coeff!$B$11,IF(L26=MAX($L$24:$L$28),coeff!$B$3/coeff!$B$7*(F26*G26-1)/(G26-1),0),0)) ->  | J26: =IF(F26="","",IF((H26*(1-F26)-1)>=coeff!$B$11,IF(L26=MAX($L$24:$L$28),coeff!$B$3/coeff!$B$7*((1-F26)*H26-1)/(H26-1),0),0)) ->  | L26: =IF(F26="","",IF((F26*G26-1)>=coeff!$B$11,F26*(F26*G26-1)-(F26*G26-1)/(G26-1)*(1-F26),IF((H26*(1-F26)-1)>=coeff!$B$11,(1-F26)*((1-F26)*H26-1)-((1-F26)*H26-1)/(H26-1)*(1-(1-F26)),0))) -> 
E27: -3.5 | F27: =IF(AND(E27<>"",D27<>""),NORMDIST(((LN((D27/(1-D27)))/0.1453)+E27),0,13.486,TRUE),"") ->  | G27: 1.75 | H27: 2.05 | I27: =IF(F27="","",IF((F27*G27-1)>=coeff!$B$11,IF(L27=MAX($L$24:$L$28),coeff!$B$3/coeff!$B$7*(F27*G27-1)/(G27-1),0),0)) ->  | J27: =IF(F27="","",IF((H27*(1-F27)-1)>=coeff!$B$11,IF(L27=MAX($L$24:$L$28),coeff!$B$3/coeff!$B$7*((1-F27)*H27-1)/(H27-1),0),0)) ->  | L27: =IF(F27="","",IF((F27*G27-1)>=coeff!$B$11,F27*(F27*G27-1)-(F27*G27-1)/(G27-1)*(1-F27),IF((H27*(1-F27)-1)>=coeff!$B$11,(1-F27)*((1-F27)*H27-1)-((1-F27)*H27-1)/(H27-1)*(1-(1-F27)),0))) -> 
E28: -3 | F28: =IF(AND(E28<>"",D28<>""),NORMDIST(((LN((D28/(1-D28)))/0.1453)+E28),0,13.486,TRUE),"") ->  | G28: 1.7 | H28: 2.1 | I28: =IF(F28="","",IF((F28*G28-1)>=coeff!$B$11,IF(L28=MAX($L$24:$L$28),coeff!$B$3/coeff!$B$7*(F28*G28-1)/(G28-1),0),0)) ->  | J28: =IF(F28="","",IF((H28*(1-F28)-1)>=coeff!$B$11,IF(L28=MAX($L$24:$L$28),coeff!$B$3/coeff!$B$7*((1-F28)*H28-1)/(H28-1),0),0)) ->  | L28: =IF(F28="","",IF((F28*G28-1)>=coeff!$B$11,F28*(F28*G28-1)-(F28*G28-1)/(G28-1)*(1-F28),IF((H28*(1-F28)-1)>=coeff!$B$11,(1-F28)*((1-F28)*H28-1)-((1-F28)*H28-1)/(H28-1)*(1-(1-F28)),0))) -> 

Sheet Multiple Totals
A2: Date | B2: Team1 | C2: Team2 | D2: Exp.Total | E2: Line | F2: ProbLine(Team1) | G2: OddsLine(Team1) | H2: OddsLine(Team2) | I2: $BetT1 | J2: $BetT2 | K2: Overlay | L2: ExpReturn | M2: Change cells my colour only
A3: =IF(NblBets!A7="","",NblBets!A7) -> 2014-11-09 | B3: =IF(NblBets!B7="","",NblBets!B7) -> Sydney | C3: =IF(NblBets!C7="","",NblBets!C7) -> Adelaide | D3: =IF(NblBets!I7="","",NblBets!I7) -> 174.3 | E3: 165.5 | F3: =IF(OR(D3="",E3=""),"",NORMDIST((D3-E3),0,19.25,TRUE)) -> 0.6762158162 | G3: 1.9 | H3: 1.9 | I3: =IF(E3="","",IF((F3*G3-1)>=coeff!$B$12,IF(L3=MAX($L$3:$L$7),coeff!$B$4/coeff!$B$8*(F3*G3-1)/(G3-1),0),0)) -> 316.4556119 | J3: =IF(E3="","",IF((H3*(1-F3)-1)>=coeff!$B$12,IF(L3=MAX($L$3:$L$7),coeff!$B$4/coeff!$B$8*((1-F3)*H3-1)/(H3-1),0),0)) -> 0 | K3: =IF(F3="","",IF(I3>0,G3*F3-1,IF(J3>0,H3*(1-F3)-1,""))) -> 0.2848100508 | L3: =IF(F3="","",IF((F3*G3-1)>=coeff!$B$11,F3*(F3*G3-1)-(F3*G3-1)/(G3-1)*(1-F3),IF((H3*(1-F3)-1)>=coeff!$B$11,(1-F3)*((1-F3)*H3-1)-((1-F3)*H3-1)/(H3-1)*(1-(1-F3)),0))) -> 0.0901297389
A4: =IF(A3="","",A3) -> 2014-11-09 | B4: =IF(B3="","",B3) -> Sydney | C4: =IF(C3="","",C3) -> Adelaide | D4: =IF(D3="","",D3) -> 174.3 | E4: 166 | F4: =IF(OR(D4="",E4=""),"",NORMDIST((D4-E4),0,19.25,TRUE)) -> 0.6668271923 | G4: 1.85 | H4: 1.95 | I4: =IF(E4="","",IF((F4*G4-1)>=coeff!$B$12,IF(L4=MAX($L$3:$L$7),coeff!$B$4/coeff!$B$8*(F4*G4-1)/(G4-1),0),0)) -> 0 | J4: =IF(E4="","",IF((H4*(1-F4)-1)>=coeff!$B$12,IF(L4=MAX($L$3:$L$7),coeff!$B$4/coeff!$B$8*((1-F4)*H4-1)/(H4-1),0),0)) -> 0 | K4: =IF(F4="","",IF(I4>0,G4*F4-1,IF(J4>0,H4*(1-F4)-1,""))) ->  | L4: =IF(F4="","",IF((F4*G4-1)>=coeff!$B$11,F4*(F4*G4-1)-(F4*G4-1)/(G4-1)*(1-F4),IF((H4*(1-F4)-1)>=coeff!$B$11,(1-F4)*((1-F4)*H4-1)-((1-F4)*H4-1)/(H4-1)*(1-(1-F4)),0))) -> 0.06421543501
A5: =IF(A4="","",A4) -> 2014-11-09 | B5: Sydney | C5: Adelaide | D5: 174.3 | E5: 166.5 | F5: 0.6573328384 | G5: 1.8 | H5: 2 | I5: =IF(E5="","",IF((F5*G5-1)>=coeff!$B$12,IF(L5=MAX($L$3:$L$7),coeff!$B$4/coeff!$B$8*(F5*G5-1)/(G5-1),0),0)) -> 0 | J5: =IF(E5="","",IF((H5*(1-F5)-1)>=coeff!$B$12,IF(L5=MAX($L$3:$L$7),coeff!$B$4/coeff!$B$8*((1-F5)*H5-1)/(H5-1),0),0)) -> 0 | L5: =IF(F5="","",IF((F5*G5-1)>=coeff!$B$11,F5*(F5*G5-1)-(F5*G5-1)/(G5-1)*(1-F5),IF((H5*(1-F5)-1)>=coeff!$B$11,(1-F5)*((1-F5)*H5-1)-((1-F5)*H5-1)/(H5-1)*(1-(1-F5)),0))) -> 0.04195239198
A6: 2014-11-09 | B6: Sydney | C6: Adelaide | D6: 174.3 | E6: 167 | F6: 0.6477380388 | G6: 1.75 | H6: 2.05 | I6: =IF(E6="","",IF((F6*G6-1)>=coeff!$B$12,IF(L6=MAX($L$3:$L$7),coeff!$B$4/coeff!$B$8*(F6*G6-1)/(G6-1),0),0)) -> 0 | J6: =IF(E6="","",IF((H6*(1-F6)-1)>=coeff!$B$12,IF(L6=MAX($L$3:$L$7),coeff!$B$4/coeff!$B$8*((1-F6)*H6-1)/(H6-1),0),0)) -> 0 | L6: =IF(F6="","",IF((F6*G6-1)>=coeff!$B$11,F6*(F6*G6-1)-(F6*G6-1)/(G6-1)*(1-F6),IF((H6*(1-F6)-1)>=coeff!$B$11,(1-F6)*((1-F6)*H6-1)-((1-F6)*H6-1)/(H6-1)*(1-(1-F6)),0))) -> 0.02377780049
A7: 2014-11-09 | B7: Sydney | C7: Adelaide | D7: 174.3 | E7: 167.5 | F7: 0.6380482699 | G7: 1.7 | H7: 2.1 | I7: =IF(E7="","",IF((F7*G7-1)>=coeff!$B$12,IF(L7=MAX($L$3:$L$7),coeff!$B$4/coeff!$B$8*(F7*G7-1)/(G7-1),0),0)) -> 0 | J7: =IF(E7="","",IF((H7*(1-F7)-1)>=coeff!$B$12,IF(L7=MAX($L$3:$L$7),coeff!$B$4/coeff!$B$8*((1-F7)*H7-1)/(H7-1),0),0)) -> 0 | L7: =IF(F7="","",IF((F7*G7-1)>=coeff!$B$11,F7*(F7*G7-1)-(F7*G7-1)/(G7-1)*(1-F7),IF((H7*(1-F7)-1)>=coeff!$B$11,(1-F7)*((1-F7)*H7-1)-((1-F7)*H7-1)/(H7-1)*(1-(1-F7)),0))) -> 0.01024435869
A9: Date | B9: Team1 | C9: Team2 | D9: Exp.Total | E9: Line | F9: ProbLine(Team1) | G9: OddsLine(Team1) | H9: OddsLine(Team2) | I9: $BetT1 | J9: $BetT2 | K9: Overlay | L9: ExpReturn
A10: =IF(NblBets!A8="","",NblBets!A8) -> 2014-11-09 | B10: =IF(NblBets!B8="","",NblBets!B8) -> Townsville | C10: =IF(NblBets!C8="","",NblBets!C8) -> New Zealand | D10: =IF(NblBets!I8="","",NblBets!I8) -> 171.7 | E10: 165 | F10: =IF(OR(D10="",E10=""),"",NORMDIST((D10-E10),0,19.25,TRUE)) -> 0.6360994147 | G10: 1.9 | H10: 1.9 | I10: =IF(F10="","",IF((F10*G10-1)>=coeff!$B$12,IF(L10=MAX($L$10:$L$14),coeff!$B$4/coeff!$B$8*(F10*G10-1)/(G10-1),0),0)) -> 231.765431 | J10: =IF(F10="","",IF((H10*(1-F10)-1)>=coeff!$B$12,IF(L10=MAX($L$10:$L$14),coeff!$B$4/coeff!$B$8*((1-F10)*H10-1)/(H10-1),0),0)) -> 0 | K10: =IF(F10="","",IF(I10>0,G10*F10-1,IF(J10>0,H10*(1-F10)-1,""))) -> 0.2085888879 | L10: =IF(F10="","",IF((F10*G10-1)>=coeff!$B$11,F10*(F10*G10-1)-(F10*G10-1)/(G10-1)*(1-F10),IF((H10*(1-F10)-1)>=coeff!$B$11,(1-F10)*((1-F10)*H10-1)-((1-F10)*H10-1)/(H10-1)*(1-(1-F10)),0))) -> 0.04834369351
A11: =IF(A10="","",A10) -> 2014-11-09 | B11: =IF(B10="","",B10) -> Townsville | C11: =IF(C10="","",C10) -> New Zealand | D11: =IF(D10="","",D10) -> 171.7 | E11: 165 | F11: =IF(OR(D11="",E11=""),"",NORMDIST((D11-E11),0,19.25,TRUE)) -> 0.6360994147 | G11: 1.85 | H11: 1.95 | I11: =IF(F11="","",IF((F11*G11-1)>=coeff!$B$12,IF(L11=MAX($L$10:$L$14),coeff!$B$4/coeff!$B$8*(F11*G11-1)/(G11-1),0),0)) -> 0 | J11: =IF(F11="","",IF((H11*(1-F11)-1)>=coeff!$B$12,IF(L11=MAX($L$10:$L$14),coeff!$B$4/coeff!$B$8*((1-F11)*H11-1)/(H11-1),0),0)) -> 0 | L11: =IF(F11="","",IF((F11*G11-1)>=coeff!$B$11,F11*(F11*G11-1)-(F11*G11-1)/(G11-1)*(1-F11),IF((H11*(1-F11)-1)>=coeff!$B$11,(1-F11)*((1-F11)*H11-1)-((1-F11)*H11-1)/(H11-1)*(1-(1-F11)),0))) -> 0.03676770985
A12: =IF(A11="","",A11) -> 2014-11-09 | B12: Townsville | C12: New Zealand | D12: 171.7 | E12: 165 | F12: 0.6360994147 | G12: 1.8 | H12: 2 | I12: =IF(F12="","",IF((F12*G12-1)>=coeff!$B$12,IF(L12=MAX($L$10:$L$14),coeff!$B$4/coeff!$B$8*(F12*G12-1)/(G12-1),0),0)) -> 0 | J12: =IF(F12="","",IF((H12*(1-F12)-1)>=coeff!$B$12,IF(L12=MAX($L$10:$L$14),coeff!$B$4/coeff!$B$8*((1-F12)*H12-1)/(H12-1),0),0)) -> 0 | L12: =IF(F12="","",IF((F12*G12-1)>=coeff!$B$11,F12*(F12*G12-1)-(F12*G12-1)/(G12-1)*(1-F12),IF((H12*(1-F12)-1)>=coeff!$B$11,(1-F12)*((1-F12)*H12-1)-((1-F12)*H12-1)/(H12-1)*(1-(1-F12)),0))) -> 0.02627361864
A13: 2014-11-09 | B13: Townsville | C13: New Zealand | D13: 171.7 | E13: 165 | F13: 0.6360994147 | G13: 1.75 | H13: 2.05 | I13: =IF(F13="","",IF((F13*G13-1)>=coeff!$B$12,IF(L13=MAX($L$10:$L$14),coeff!$B$4/coeff!$B$8*(F13*G13-1)/(G13-1),0),0)) -> 0 | J13: =IF(F13="","",IF((H13*(1-F13)-1)>=coeff!$B$12,IF(L13=MAX($L$10:$L$14),coeff!$B$4/coeff!$B$8*((1-F13)*H13-1)/(H13-1),0),0)) -> 0 | L13: =IF(F13="","",IF((F13*G13-1)>=coeff!$B$11,F13*(F13*G13-1)-(F13*G13-1)/(G13-1)*(1-F13),IF((H13*(1-F13)-1)>=coeff!$B$11,(1-F13)*((1-F13)*H13-1)-((1-F13)*H13-1)/(H13-1)*(1-(1-F13)),0))) -> 0.01707779837
A14: 2014-11-09 | B14: Townsville | C14: New Zealand | D14: 171.7 | E14: 165 | F14: 0.6360994147 | G14: 1.7 | H14: 2.1 | I14: =IF(F14="","",IF((F14*G14-1)>=coeff!$B$12,IF(L14=MAX($L$10:$L$14),coeff!$B$4/coeff!$B$8*(F14*G14-1)/(G14-1),0),0)) -> 0 | J14: =IF(F14="","",IF((H14*(1-F14)-1)>=coeff!$B$12,IF(L14=MAX($L$10:$L$14),coeff!$B$4/coeff!$B$8*((1-F14)*H14-1)/(H14-1),0),0)) -> 0 | L14: =IF(F14="","",IF((F14*G14-1)>=coeff!$B$11,F14*(F14*G14-1)-(F14*G14-1)/(G14-1)*(1-F14),IF((H14*(1-F14)-1)>=coeff!$B$11,(1-F14)*((1-F14)*H14-1)-((1-F14)*H14-1)/(H14-1)*(1-(1-F14)),0))) -> 0.009458449959
A16: Date | B16: Team1 | C16: Team2 | D16: Exp.Total | E16: Line | F16: ProbLine(Team1) | G16: OddsLine(Team1) | H16: OddsLine(Team2) | I16: $BetT1 | J16: $BetT2 | K16: Overlay | L16: ExpReturn
A17: =IF(NblBets!A9="","",NblBets!A9) -> 2014-11-09 | B17: =IF(NblBets!B9="","",NblBets!B9) -> Perth | C17: =IF(NblBets!C9="","",NblBets!C9) -> Melbourne | D17: =IF(NblBets!I9="","",NblBets!I9) -> 158.2 | E17: 165.5 | F17: =IF(OR(D17="",E17=""),"",NORMDIST((D17-E17),0,19.25,TRUE)) -> 0.3522619612 | G17: 1.9 | H17: 1.9 | I17: =IF(F17="","",IF((F17*G17-1)>=coeff!$B$12,IF(L17=MAX($L$17:$L$21),coeff!$B$4/coeff!$B$8*(F17*G17-1)/(G17-1),0),0)) -> 0 | J17: =IF(F17="","",IF((H17*(1-F17)-1)>=coeff!$B$12,IF(L17=MAX($L$17:$L$21),coeff!$B$4/coeff!$B$8*((1-F17)*H17-1)/(H17-1),0),0)) -> 256.3358597 | K17: =IF(F17="","",IF(I17>0,G17*F17-1,IF(J17>0,H17*(1-F17)-1,""))) -> 0.2307022738 | L17: =IF(F17="","",IF((F17*G17-1)>=coeff!$B$12,F17*(F17*G17-1)-(F17*G17-1)/(G17-1)*(1-F17),IF((H17*(1-F17)-1)>=coeff!$B$12,2,0))) -> 2
A18: =IF(A17="","",A17) -> 2014-11-09 | B18: Perth | C18: Melbourne | D18: 158.2 | E18: 166 | F18: =IF(OR(D18="",E18=""),"",NORMDIST((D18-E18),0,19.25,TRUE)) -> 0.3426671616 | G18: 1.85 | H18: 1.95 | I18: =IF(F18="","",IF((F18*G18-1)>=coeff!$B$12,IF(L18=MAX($L$17:$L$21),coeff!$B$4/coeff!$B$8*(F18*G18-1)/(G18-1),0),0)) -> 0 | J18: =IF(F18="","",IF((H18*(1-F18)-1)>=coeff!$B$12,IF(L18=MAX($L$17:$L$21),coeff!$B$4/coeff!$B$8*((1-F18)*H18-1)/(H18-1),0),0)) -> 296.630563 | K18: 0.2817990349 | L18: =IF(F18="","",IF((F18*G18-1)>=coeff!$B$12,F18*(F18*G18-1)-(F18*G18-1)/(G18-1)*(1-F18),IF((H18*(1-F18)-1)>=coeff!$B$12,2,0))) -> 2
A19: 2014-11-09 | B19: =IF(B18="","",B18) -> Perth | C19: Melbourne | D19: 158.2 | E19: 166.5 | F19: 0.3331728077 | G19: 1.8 | H19: 2 | I19: =IF(F19="","",IF((F19*G19-1)>=coeff!$B$12,IF(L19=MAX($L$17:$L$21),coeff!$B$4/coeff!$B$8*(F19*G19-1)/(G19-1),0),0)) -> 0 | J19: =IF(F19="","",IF((H19*(1-F19)-1)>=coeff!$B$12,IF(L19=MAX($L$17:$L$21),coeff!$B$4/coeff!$B$8*((1-F19)*H19-1)/(H19-1),0),0)) -> 333.6543846 | K19: 0.3336543846 | L19: =IF(F19="","",IF((F19*G19-1)>=coeff!$B$12,F19*(F19*G19-1)-(F19*G19-1)/(G19-1)*(1-F19),IF((H19*(1-F19)-1)>=coeff!$B$12,2,0))) -> 2
A20: 2014-11-09 | B20: =IF(B19="","",B19) -> Perth | C20: Melbourne | D20: 158.2 | E20: 167 | F20: 0.3237841838 | G20: 1.75 | H20: 2.05 | I20: =IF(F20="","",IF((F20*G20-1)>=coeff!$B$12,IF(L20=MAX($L$17:$L$21),coeff!$B$4/coeff!$B$8*(F20*G20-1)/(G20-1),0),0)) -> 0 | J20: =IF(F20="","",IF((H20*(1-F20)-1)>=coeff!$B$12,IF(L20=MAX($L$17:$L$21),coeff!$B$4/coeff!$B$8*((1-F20)*H20-1)/(H20-1),0),0)) -> 367.8499268 | K20: 0.3862424232 | L20: =IF(F20="","",IF((F20*G20-1)>=coeff!$B$12,F20*(F20*G20-1)-(F20*G20-1)/(G20-1)*(1-F20),IF((H20*(1-F20)-1)>=coeff!$B$12,2,0))) -> 2
A21: 2014-11-09 | B21: =IF(B20="","",B20) -> Perth | C21: Melbourne | D21: 158.2 | E21: 167.5 | F21: 0.3145063735 | G21: 1.7 | H21: 2.1 | I21: =IF(F21="","",IF((F21*G21-1)>=coeff!$B$12,IF(L21=MAX($L$17:$L$21),coeff!$B$4/coeff!$B$8*(F21*G21-1)/(G21-1),0),0)) -> 0 | J21: =IF(F21="","",IF((H21*(1-F21)-1)>=coeff!$B$12,IF(L21=MAX($L$17:$L$21),coeff!$B$4/coeff!$B$8*((1-F21)*H21-1)/(H21-1),0),0)) -> 399.5787415 | K21: 0.4395366156 | L21: =IF(F21="","",IF((F21*G21-1)>=coeff!$B$12,F21*(F21*G21-1)-(F21*G21-1)/(G21-1)*(1-F21),IF((H21*(1-F21)-1)>=coeff!$B$12,2,0))) -> 2
A23: Date | B23: Team1 | C23: Team2 | D23: Exp.Total | E23: Line | F23: ProbLine(Team1) | G23: OddsLine(Team1) | H23: OddsLine(Team2) | I23: $BetT1 | J23: $BetT2 | K23: Overlay | L23: ExpReturn
A24: =IF(NblBets!A10="","",NblBets!A10) ->  | B24: =IF(NblBets!B10="","",NblBets!B10) ->  | C24: =IF(NblBets!C10="","",NblBets!C10) ->  | D24: =IF(NblBets!I10="","",NblBets!I10) ->  | E24: 165.5 | F24: =IF(OR(D24="",E24=""),"",NORMDIST((D24-E24),0,19.25,TRUE)) ->  | G24: 1.9 | H24: 1.9 | I24: =IF(F24="","",IF((F24*G24-1)>=coeff!$B$12,IF(L24=MAX($L$24:$L$28),coeff!$B$4/coeff!$B$8*(F24*G24-1)/(G24-1),0),0)) ->  | J24: =IF(F24="","",IF((H24*(1-F24)-1)>=coeff!$B$12,IF(L24=MAX($L$24:$L$28),coeff!$B$4/coeff!$B$8*((1-F24)*H24-1)/(H24-1),0),0)) ->  | K24: =IF(F24="","",IF(I24>0,G24*F24-1,IF(J24>0,H24*(1-F24)-1,""))) ->  | L24: =IF(F24="","",IF((F24*G24-1)>=coeff!$B$12,F24*(F24*G24-1)-(F24*G24-1)/(G24-1)*(1-F24),IF((H24*(1-F24)-1)>=coeff!$B$12,2,0))) -> 
A25: =IF(A24="","",A24) ->  | E25: 166 | F25: =IF(OR(D25="",E25=""),"",NORMDIST((D25-E25),0,19.25,TRUE)) ->  | G25: 1.85 | H25: 1.95 | I25: =IF(F25="","",IF((F25*G25-1)>=coeff!$B$12,IF(L25=MAX($L$24:$L$28),coeff!$B$4/coeff!$B$8*(F25*G25-1)/(G25-1),0),0)) ->  | J25: =IF(F25="","",IF((H25*(1-F25)-1)>=coeff!$B$12,IF(L25=MAX($L$24:$L$28),coeff!$B$4/coeff!$B$8*((1-F25)*H25-1)/(H25-1),0),0)) ->  | L25: =IF(F25="","",IF((F25*G25-1)>=coeff!$B$12,F25*(F25*G25-1)-(F25*G25-1)/(G25-1)*(1-F25),IF((H25*(1-F25)-1)>=coeff!$B$12,2,0))) -> 
A26: =IF(A25="","",A25) ->  | E26: 166.5 | G26: 1.8 | H26: 2 | I26: =IF(F26="","",IF((F26*G26-1)>=coeff!$B$12,IF(L26=MAX($L$24:$L$28),coeff!$B$4/coeff!$B$8*(F26*G26-1)/(G26-1),0),0)) ->  | J26: =IF(F26="","",IF((H26*(1-F26)-1)>=coeff!$B$12,IF(L26=MAX($L$24:$L$28),coeff!$B$4/coeff!$B$8*((1-F26)*H26-1)/(H26-1),0),0)) ->  | L26: =IF(F26="","",IF((F26*G26-1)>=coeff!$B$12,F26*(F26*G26-1)-(F26*G26-1)/(G26-1)*(1-F26),IF((H26*(1-F26)-1)>=coeff!$B$12,2,0))) -> 
A27: =IF(A26="","",A26) ->  | E27: 167 | G27: 1.75 | H27: 2.05 | I27: =IF(F27="","",IF((F27*G27-1)>=coeff!$B$12,IF(L27=MAX($L$24:$L$28),coeff!$B$4/coeff!$B$8*(F27*G27-1)/(G27-1),0),0)) ->  | J27: =IF(F27="","",IF((H27*(1-F27)-1)>=coeff!$B$12,IF(L27=MAX($L$24:$L$28),coeff!$B$4/coeff!$B$8*((1-F27)*H27-1)/(H27-1),0),0)) ->  | L27: =IF(F27="","",IF((F27*G27-1)>=coeff!$B$12,F27*(F27*G27-1)-(F27*G27-1)/(G27-1)*(1-F27),IF((H27*(1-F27)-1)>=coeff!$B$12,2,0))) -> 
A28: =IF(A27="","",A27) ->  | E28: 167.5 | G28: 1.7 | H28: 2.1 | I28: =IF(F28="","",IF((F28*G28-1)>=coeff!$B$12,IF(L28=MAX($L$24:$L$28),coeff!$B$4/coeff!$B$8*(F28*G28-1)/(G28-1),0),0)) ->  | J28: =IF(F28="","",IF((H28*(1-F28)-1)>=coeff!$B$12,IF(L28=MAX($L$24:$L$28),coeff!$B$4/coeff!$B$8*((1-F28)*H28-1)/(H28-1),0),0)) ->  | L28: =IF(F28="","",IF((F28*G28-1)>=coeff!$B$12,F28*(F28*G28-1)-(F28*G28-1)/(G28-1)*(1-F28),IF((H28*(1-F28)-1)>=coeff!$B$12,2,0))) -> 
